bitfinex-derivatives/quotes_BTCF0:USTF0_20250830
["timestamp","ask_amount","ask_price","bid_price","bid_amount"]
[1756530803490,0.48361325,108410.0,108400.0,0.40592081]
[1756530803789,0.83873406,108410.0,108400.0,0.40592081]
[1756530803989,0.48361325,108410.0,108400.0,0.40592081]
[1756530804190,0.83873406,108410.0,108400.0,0.40592081]
[1756530806588,0.83873406,108410.0,108400.0,0.0508]
[1756530806787,0.58361325,108410.0,108400.0,0.0508]
[1756530806987,1.29385487,108410.0,108400.0,0.0508]
[1756530807186,1.29385487,108410.0,108400.0,0.02236]
[1756530808196,1.29385487,108410.0,108400.0,0.02036]
[1756530808393,1.29585487,108410.0,108400.0,0.02036]
[1756530808594,1.29785487,108410.0,108400.0,0.01936]
[1756530810499,0.58761325,108410.0,108400.0,0.01936]
[1756530810701,0.94273406,108410.0,108400.0,0.0478]
[1756530811597,1.29785487,108410.0,108400.0,0.01936]
[1756530812596,1.29785487,108410.0,108400.0,0.04632]
[1756530813101,0.94273406,108410.0,108400.0,0.04632]
[1756530813600,0.94273406,108410.0,108400.0,0.01936]
[1756530817613,0.94273406,108410.0,108400.0,0.03784435]
[1756530818813,0.58761325,108410.0,108400.0,0.03784435]
[1756530819011,0.94273406,108410.0,108400.0,0.03784435]
[1756530821714,1.29785487,108410.0,108400.0,0.03784435]
[1756530822112,0.94273406,108410.0,108400.0,0.03784435]
[1756530822610,1.29785487,108410.0,108400.0,0.03784435]
[1756530824213,1.29785487,108410.0,108400.0,0.01848435]
[1756530826618,1.29785487,108410.0,108400.0,0.03796435]
[1756530827018,0.58761325,108410.0,108400.0,0.03796435]
[1756530827214,1.29785487,108410.0,108400.0,0.03796435]
[1756530828717,0.94273406,108410.0,108400.0,0.03796435]
[1756530831722,0.58193406,108410.0,108400.0,0.03796435]
[1756530831914,0.94273406,108410.0,108400.0,0.03796435]
[1756530832421,1.79425406,108410.0,108400.0,0.03796435]
[1756530838723,1.79425406,108410.0,108400.0,0.01848435]
[1756530839930,2.14937487,108410.0,108400.0,0.01848435]
[1756530840824,2.14937487,108410.0,108390.0,0.04644]
[1756530841027,1.27104162,108400.0,108390.0,0.01948]
[1756530841224,0.58361325,108400.0,108390.0,0.01948]
[1756530841424,1.29385487,108400.0,108390.0,0.04729]
[1756530841733,1.29385487,108400.0,108390.0,0.01948]
[1756530842227,1.29385487,108400.0,108390.0,0.04729]
[1756530842531,1.29485487,108400.0,108390.0,0.04729]
[1756530843827,1.12302771,108400.0,108390.0,0.04729]
[1756530844032,1.12402771,108400.0,108390.0,0.04729]
[1756530845629,1.12402771,108400.0,108390.0,0.01948]
[1756530850138,0.41378609,108400.0,108390.0,0.01948]
[1756530850637,1.12402771,108400.0,108390.0,0.01948]
[1756530851638,0.41378609,108400.0,108390.0,0.40241081]
[1756530851841,0.83505487,108400.0,108390.0,0.40241081]
[1756530852040,1.68509487,108400.0,108390.0,0.40241081]
[1756530852240,0.83505487,108400.0,108390.0,0.40241081]
[1756530852439,1.68545487,108400.0,108390.0,0.40241081]
[1756530852936,2.04625487,108400.0,108390.0,0.40241081]
[1756530853332,1.68545487,108400.0,108390.0,0.01948]
[1756530853532,2.14625487,108400.0,108380.0,0.4070648]
[1756530853838,0.03109,108380.0,108370.0,0.3989545]
[1756530854138,0.40902406,108380.0,108370.0,0.75407531]
[1756530855235,0.41002406,108380.0,108370.0,0.75407531]
[1756530855535,0.41002406,108380.0,108370.0,0.3989545]
[1756530855737,0.41002406,108380.0,108370.0,0.76774081]
[1756530856238,0.05490325,108380.0,108370.0,0.76774081]
[1756530856435,0.76514487,108380.0,108370.0,0.76774081]
[1756530856740,0.41002406,108380.0,108370.0,0.76774081]
[1756530857435,0.48331443,108380.0,108370.0,0.76774081]
[1756530857636,0.12819362,108380.0,108370.0,0.76774081]
[1756530857835,0.48331443,108380.0,108370.0,0.40694081]
[1756530859044,0.48331443,108380.0,108370.0,0.76774081]
[1756530859345,0.12819362,108380.0,108370.0,0.76774081]
[1756530859641,0.48331443,108380.0,108370.0,0.76774081]
[1756530860534,0.12819362,108380.0,108370.0,0.41262]
[1756530860736,0.48331443,108380.0,108370.0,0.41262]
[1756530861043,0.48331443,108380.0,108370.0,0.40694081]
[1756530861237,0.83843524,108380.0,108370.0,0.05182]
[1756530861439,2.05207524,108380.0,108370.0,0.05182]
[1756530862844,2.25207524,108380.0,108370.0,0.02401]
[1756530863951,2.25207524,108380.0,108370.0,0.00461]
[1756530865145,2.25207524,108380.0,108370.0,0.02401]
[1756530865344,2.25207524,108380.0,108370.0,0.00461]
[1756530866042,2.06268854,108380.0,108370.0,0.00461]
[1756530866944,2.74177869,108380.0,108350.0,0.04721]
[1756530867147,0.35512081,108360.0,108350.0,0.40233081]
[1756530867350,1.20888081,108360.0,108350.0,0.40233081]
[1756530867948,1.23769831,108360.0,108350.0,0.40233081]
[1756530868154,1.23769831,108360.0,108350.0,0.04721]
[1756530868346,1.23769831,108360.0,108350.0,0.04921]
[1756530868543,0.8825775,108360.0,108350.0,0.40433081]
[1756530868845,1.23769831,108360.0,108350.0,0.40433081]
[1756530869035,0.0288175,108360.0,108350.0,0.40433081]
[1756530869237,0.35512081,108360.0,108350.0,0.40633081]
[1756530869843,0.35512081,108360.0,108350.0,0.05121]
[1756530870050,0.35512081,108360.0,108350.0,0.40433081]
[1756530870348,0.85608,108360.0,108350.0,0.40333081]
[1756530870549,1.21120081,108360.0,108350.0,0.40333081]
[1756530871048,1.21120081,108360.0,108350.0,0.04821]
[1756530871250,1.56632162,108360.0,108350.0,0.40333081]
[1756530871751,1.59121714,108360.0,108350.0,0.40333081]
[1756530872443,1.95201714,108360.0,108350.0,0.40333081]
[1756530874248,1.95201714,108360.0,108350.0,0.04821]
[1756530874438,1.95201714,108360.0,108350.0,0.40333081]
[1756530874439,2.05201714,108360.0,108350.0,0.40333081]
[1756530874641,2.05201714,108360.0,108350.0,0.04821]
[1756530875052,1.34177552,108360.0,108350.0,0.04821]
[1756530875247,2.05201714,108360.0,108350.0,0.04821]
[1756530875446,2.05201714,108360.0,108350.0,0.0204]
[1756530876151,2.05201714,108360.0,108350.0,0.04886]
[1756530876552,1.34177552,108360.0,108350.0,0.04886]
[1756530876751,2.05201714,108360.0,108350.0,0.04886]
[1756530878053,2.07468217,108360.0,108350.0,0.04886]
[1756530878247,1.36444055,108360.0,108350.0,0.04886]
[1756530878448,2.07468217,108360.0,108350.0,0.04886]
[1756530879552,2.07468217,108360.0,108350.0,0.0204]
[1756530879753,1.36444055,108360.0,108350.0,0.0204]
[1756530879944,2.07468217,108360.0,108350.0,0.04886]
[1756530881056,2.08168217,108360.0,108350.0,0.04786]
[1756530881652,2.08168217,108360.0,108350.0,0.0194]
[1756530882044,2.08168217,108360.0,108340.0,0.02846]
[1756530882352,0.45512081,108350.0,108340.0,0.40265081]
[1756530882654,0.37778584,108350.0,108340.0,0.40265081]
[1756530883953,0.38078584,108350.0,108340.0,0.40265081]
[1756530884851,0.74158584,108350.0,108340.0,0.04753]
[1756530885049,0.84158584,108350.0,108340.0,0.01907]
[1756530885451,0.84158584,108350.0,108340.0,0.40265081]
[1756530885452,0.48846503,108350.0,108340.0,0.40265081]
[1756530885853,0.84358584,108350.0,108340.0,0.40265081]
[1756530886053,0.48846503,108350.0,108340.0,0.40265081]
[1756530886354,0.84358584,108350.0,108340.0,0.40265081]
[1756530888353,0.48846503,108350.0,108340.0,0.40265081]
[1756530888562,0.84358584,108350.0,108340.0,0.40265081]
[1756530888856,1.69802584,108350.0,108340.0,0.04753]
[1756530889058,1.69802584,108350.0,108340.0,0.40265081]
[1756530889254,1.69802584,108350.0,108340.0,0.04753]
[1756530889456,1.69802584,108350.0,108340.0,0.40265081]
[1756530889857,1.69802584,108350.0,108340.0,0.04753]
[1756530890060,1.69802584,108350.0,108340.0,0.40265081]
[1756530890758,1.69802584,108350.0,108340.0,0.04753]
[1756530890959,1.69802584,108350.0,108340.0,0.40265081]
[1756530892860,0.84358584,108350.0,108340.0,0.40265081]
[1756530893060,1.69726584,108350.0,108340.0,0.40265081]
[1756530895959,1.69726584,108350.0,108340.0,0.04753]
[1756530896163,1.69726584,108350.0,108340.0,0.37419081]
[1756530896563,1.69726584,108350.0,108340.0,0.01907]
[1756530897061,1.69726584,108350.0,108340.0,0.37419081]
[1756530897261,1.69726584,108350.0,108340.0,0.40265081]
[1756530897463,1.69726584,108350.0,108340.0,0.04753]
[1756530899865,1.69726584,108350.0,108340.0,0.01907]
[1756530900269,1.69726584,108350.0,108340.0,0.04753]
[1756530905170,1.79726584,108350.0,108340.0,0.04753]
[1756530905871,1.79534584,108350.0,108340.0,0.04753]
[1756530907862,1.43454584,108350.0,108340.0,0.04753]
[1756530908071,0.58846503,108350.0,108340.0,0.04753]
[1756530908270,1.44026503,108350.0,108340.0,0.40265081]
[1756530908573,1.79538584,108350.0,108340.0,0.40265081]
[1756530909170,0.12766503,108350.0,108340.0,1.00777162]
[1756530909372,0.02766503,108350.0,108340.0,1.36857162]
[1756530910873,0.02466503,108350.0,108340.0,0.65833]
[1756530911073,0.02466503,108350.0,108340.0,1.36857162]
[1756530911274,0.02455842,108350.0,108340.0,1.36857162]
[1756530911476,0.002,108350.0,108340.0,1.36857162]
[1756530911966,0.001,108350.0,108340.0,1.36857162]
[1756530912167,0.001,108350.0,108340.0,0.65833]
[1756530912365,0.87677552,108360.0,108340.0,0.65833]
[1756530912366,1.23189633,108360.0,108350.0,0.04994]
[1756530912569,0.40257096,108360.0,108350.0,0.76586081]
[1756530912778,0.04745015,108360.0,108350.0,0.76586081]
[1756530912976,0.40257096,108360.0,108350.0,0.76586081]
[1756530913473,0.04745015,108360.0,108350.0,0.76586081]
[1756530913873,0.04745015,108360.0,108350.0,0.41074]
[1756530914078,0.40357096,108360.0,108350.0,0.76586081]
[1756530914379,0.40457096,108360.0,108350.0,0.41074]
[1756530914677,0.40457096,108360.0,108350.0,0.76586081]
[1756530915274,0.40457096,108360.0,108350.0,0.04994]
[1756530915576,0.40457096,108360.0,108350.0,0.40506081]
[1756530916478,0.40457096,108360.0,108350.0,0.04994]
[1756530916675,0.40457096,108360.0,108350.0,0.40506081]
[1756530919181,0.04945015,108360.0,108350.0,0.76586081]
[1756530919482,0.40457096,108360.0,108350.0,0.76586081]
[1756530920077,0.40457096,108360.0,108350.0,0.40506081]
[1756530920381,0.40457096,108360.0,108350.0,0.76586081]
[1756530923782,0.40457096,108360.0,108350.0,0.41074]
[1756530923983,0.40457096,108360.0,108350.0,0.76586081]
[1756530924282,0.04945015,108360.0,108350.0,0.76586081]
[1756530924483,0.40457096,108360.0,108350.0,0.76586081]
[1756530925784,0.04945015,108360.0,108350.0,0.76586081]
[1756530925984,0.40457096,108360.0,108350.0,0.76586081]
[1756530926284,0.04945015,108360.0,108350.0,0.76586081]
[1756530926483,0.40457096,108360.0,108350.0,0.76586081]
[1756530929785,0.04945015,108360.0,108350.0,0.76586081]
[1756530929986,0.40457096,108360.0,108350.0,0.76586081]
[1756530933289,0.04945015,108360.0,108350.0,0.76586081]
[1756530933489,0.40457096,108360.0,108350.0,0.76586081]
[1756530933988,0.40457096,108360.0,108350.0,0.41074]
[1756530934184,0.04945015,108360.0,108350.0,0.40506081]
[1756530934385,0.40457096,108360.0,108350.0,0.40506081]
[1756530935688,0.04945015,108360.0,108350.0,0.40506081]
[1756530935886,0.40457096,108360.0,108350.0,0.04994]
[1756530936081,0.04945015,108360.0,108350.0,0.40506081]
[1756530936283,0.40457096,108360.0,108350.0,0.76586081]
[1756530936789,0.04945015,108360.0,108350.0,0.76586081]
[1756530936987,0.04945015,108360.0,108350.0,1.2657]
[1756530937288,0.04945015,108360.0,108350.0,1.97594162]
[1756530937680,0.04945015,108360.0,108350.0,1.62082081]
[1756530939184,0.04945015,108360.0,108350.0,1.26914]
[1756530939490,0.40457096,108360.0,108350.0,1.62426081]
[1756530939792,0.40457096,108360.0,108350.0,0.76586081]
[1756530940090,0.04945015,108360.0,108350.0,0.76586081]
[1756530941594,0.04945015,108360.0,108350.0,1.62414081]
[1756530941793,0.40457096,108360.0,108350.0,1.62414081]
[1756530941994,0.04945015,108360.0,108350.0,1.62414081]
[1756530946198,0.04950474,108360.0,108350.0,1.62414081]
[1756530946893,0.04950474,108360.0,108350.0,1.26902]
[1756530947100,0.04950474,108360.0,108350.0,1.62414081]
[1756530950304,0.04950474,108360.0,108350.0,1.62338081]
[1756530950805,0.04950474,108360.0,108350.0,1.26826]
[1756530951006,0.04950474,108360.0,108350.0,1.26258081]
[1756530951206,0.04950474,108360.0,108350.0,1.62338081]
[1756530952009,0.04950474,108360.0,108350.0,1.26258081]
[1756530952309,0.04950474,108360.0,108350.0,1.62338081]
[1756530956811,0.04950474,108360.0,108350.0,0.76586081]
[1756530957110,0.04950474,108360.0,108350.0,1.62162081]
[1756530957309,0.04950474,108360.0,108350.0,1.2665]
[1756530957612,0.04950474,108360.0,108350.0,1.62162081]
[1756530957811,0.04950474,108360.0,108350.0,0.41074]
[1756530958011,0.04950474,108360.0,108350.0,1.62162081]
[1756530958609,0.04950474,108360.0,108350.0,1.26082081]
[1756530958810,0.04950474,108360.0,108350.0,1.62162081]
[1756530960209,0.04950474,108360.0,108350.0,0.41074]
[1756530960412,0.04950474,108360.0,108350.0,1.62110081]
[1756530962513,0.04950474,108360.0,108350.0,1.97622162]
[1756530962906,0.13987267,108380.0,108370.0,0.01745]
[1756530963107,0.11274267,108380.0,108370.0,1.61513081]
[1756530963312,0.09515267,108380.0,108370.0,1.61513081]
[1756530963508,0.07396934,108380.0,108370.0,1.61513081]
[1756530963709,0.07396934,108380.0,108370.0,1.26001]
[1756530963910,0.07396934,108380.0,108370.0,1.61513081]
[1756530965016,0.07596934,108380.0,108370.0,1.61513081]
[1756530965712,0.07496934,108380.0,108370.0,1.61513081]
[1756530966212,0.07596934,108380.0,108370.0,1.61513081]
[1756530967516,0.07596934,108380.0,108370.0,1.61461081]
[1756530967718,0.07596934,108380.0,108370.0,0.75993081]
[1756530967916,0.07596934,108380.0,108370.0,1.61461081]
[1756530968717,0.07596934,108380.0,108370.0,0.40481]
[1756530968918,0.07596934,108380.0,108370.0,1.61457081]
[1756530969118,0.35512081,108390.0,108370.0,1.23289]
[1756530969316,0.36035081,108390.0,108380.0,0.04401]
[1756530969516,0.36035081,108390.0,108380.0,0.39913081]
[1756530970217,0.43424689,108390.0,108380.0,0.39913081]
[1756530971218,0.43951689,108390.0,108380.0,0.39913081]
[1756530971417,0.44051689,108390.0,108380.0,0.39913081]
[1756530972117,0.08639608,108390.0,108380.0,0.39913081]
[1756530972318,0.46301743,108390.0,108380.0,0.39913081]
[1756530972519,0.38912135,108390.0,108380.0,0.39913081]
[1756530975020,0.48512753,108390.0,108380.0,0.39913081]
[1756530978522,0.13000672,108390.0,108380.0,0.39913081]
[1756530978726,0.48512753,108390.0,108380.0,0.39913081]
[1756530979217,0.58512753,108390.0,108380.0,0.04401]
[1756530979422,0.58512753,108390.0,108380.0,0.39913081]
[1756530979722,0.23000672,108390.0,108380.0,0.39913081]
[1756530980221,0.13000672,108390.0,108380.0,0.04401]
[1756530980421,0.48512753,108390.0,108380.0,0.39913081]
[1756530984029,0.13000672,108390.0,108380.0,0.39913081]
[1756530984223,0.48512753,108390.0,108380.0,0.75425162]
[1756530984420,0.13000672,108390.0,108380.0,0.75425162]
[1756530984620,0.48512753,108390.0,108380.0,0.75425162]
[1756530985024,0.48512753,108390.0,108380.0,0.39913081]
[1756530985622,0.48512753,108390.0,108380.0,0.75425162]
[1756530986728,0.48512753,108390.0,108380.0,1.11505162]
[1756530987427,0.13000672,108390.0,108380.0,1.11505162]
[1756530987627,0.48512753,108390.0,108380.0,1.11505162]
[1756530987929,0.12150672,108390.0,108380.0,1.73873046]
[1756530988128,0.12150672,108390.0,108380.0,1.38360965]
[1756530995732,0.12149598,108390.0,108380.0,1.38360965]
[1756530996825,0.09902766,108390.0,108380.0,1.48873046]
[1756530997020,0.09902766,108390.0,108380.0,1.13360965]
[1756530997420,0.09902766,108390.0,108380.0,1.48873046]
[1756531002339,0.06972766,108390.0,108380.0,1.48873046]
[1756531002634,0.01771,108400.0,108390.0,0.04601]
[1756531002830,0.090057,108400.0,108390.0,1.97005162]
[1756531003025,0.04017681,108400.0,108390.0,1.97005162]
[1756531003629,0.07845459,108400.0,108390.0,1.97005162]
[1756531003834,0.08145459,108400.0,108390.0,1.97005162]
[1756531004436,0.08445459,108400.0,108390.0,1.97005162]
[1756531006337,0.06674459,108400.0,108390.0,1.97005162]
[1756531007537,0.14093638,108400.0,108390.0,1.97005162]
[1756531013438,0.17027638,108400.0,108390.0,1.11705162]
[1756531013642,0.18798638,108400.0,108390.0,1.61357081]
[1756531014139,0.18798638,108400.0,108390.0,0.76193081]
[1756531014339,1.609028,108400.0,108390.0,0.04601]
[1756531014540,1.709028,108400.0,108380.0,0.40190884]
[1756531014746,0.50785,108390.0,108380.0,0.41968884]
[1756531015047,0.88543762,108390.0,108380.0,0.06456803]
[1756531015242,0.53031681,108390.0,108380.0,0.41968884]
[1756531015437,0.88543762,108390.0,108380.0,0.41968884]
[1756531016849,0.88543762,108390.0,108380.0,0.06456803]
[1756531017042,0.88543762,108390.0,108380.0,0.41968884]
[1756531017241,0.88643762,108390.0,108380.0,0.41968884]
[1756531017547,0.53131681,108390.0,108380.0,0.41984595]
[1756531017850,0.53231681,108390.0,108380.0,0.41984595]
[1756531018042,0.53231681,108390.0,108380.0,0.06456803]
[1756531019549,0.88759473,108390.0,108380.0,0.06456803]
[1756531020745,0.04705,108380.0,108370.0,0.04601]
[1756531021053,0.42479473,108380.0,108370.0,0.01778]
[1756531021346,0.78559473,108380.0,108370.0,0.01778]
[1756531021955,0.78559473,108380.0,108370.0,0.01878]
[1756531022144,0.43031681,108380.0,108370.0,0.01878]
[1756531022344,0.06951681,108380.0,108370.0,0.01878]
[1756531025753,0.06951681,108380.0,108370.0,0.001]
[1756531025948,0.06951681,108380.0,108370.0,0.37480792]
[1756531026356,0.06951681,108380.0,108370.0,0.40393792]
[1756531029655,0.42479473,108380.0,108370.0,0.04866]
[1756531030255,0.06951681,108380.0,108370.0,0.04866]
[1756531030650,0.06951681,108380.0,108370.0,0.40393792]
[1756531032254,1.34693798,108390.0,108370.0,0.76473792]
[1756531032447,1.54693798,108390.0,108370.0,0.76473792]
[1756531033049,1.66979792,108390.0,108370.0,0.76473792]
[1756531033356,1.66979792,108390.0,108370.0,0.76373792]
[1756531033550,0.1,108380.0,108370.0,0.40946]
[1756531033750,0.45527792,108380.0,108370.0,0.40946]
[1756531033949,0.55527792,108380.0,108370.0,0.40946]
[1756531034149,0.2,108380.0,108370.0,0.40946]
[1756531034644,0.91607792,108380.0,108370.0,0.01953]
[1756531035058,0.91607792,108380.0,108370.0,0.01853]
[1756531035257,0.5608,108380.0,108370.0,0.01953]
[1756531035453,0.91607792,108380.0,108370.0,0.01953]
[1756531036157,1.16607792,108380.0,108370.0,0.001]
[1756531036459,1.16607792,108380.0,108370.0,0.01953]
[1756531036655,0.8108,108380.0,108370.0,0.04866]
[1756531036854,2.02027792,108380.0,108370.0,0.04866]
[1756531037056,2.02027792,108380.0,108370.0,0.01953]
[1756531037355,2.02127792,108380.0,108370.0,0.01853]
[1756531041060,0.8128,108380.0,108370.0,0.01853]
[1756531041360,2.02059792,108380.0,108370.0,0.01853]
[1756531044159,0.8128,108380.0,108370.0,0.01853]
[1756531044353,1.6877645,108380.0,108370.0,0.01853]
[1756531044555,2.04304242,108380.0,108370.0,0.01853]
[1756531045263,2.39858574,108380.0,108370.0,0.01853]
[1756531050270,2.39858574,108380.0,108360.0,0.40307062]
[1756531050271,0.36924062,108370.0,108360.0,0.40307062]
[1756531050468,0.59192512,108370.0,108360.0,0.40307062]
[1756531051468,0.59192512,108370.0,108360.0,0.40407062]
[1756531051772,0.59192512,108370.0,108360.0,0.42254362]
[1756531051963,0.2365145,108370.0,108360.0,0.067133]
[1756531052156,0.2365145,108370.0,108360.0,0.42254362]
[1756531052571,0.59192512,108370.0,108360.0,0.42254362]
[1756531054968,1.44380512,108370.0,108360.0,0.42254362]
[1756531057285,1.0883945,108370.0,108360.0,0.42254362]
[1756531057476,1.44380512,108370.0,108360.0,0.42254362]
[1756531057786,0.2365145,108370.0,108360.0,0.42254362]
[1756531057977,1.44384512,108370.0,108360.0,0.42254362]
[1756531059186,1.44384512,108370.0,108360.0,0.067133]
[1756531059386,1.44384512,108370.0,108360.0,0.42254362]
[1756531062187,1.0884345,108370.0,108360.0,0.42254362]
[1756531062390,1.44384512,108370.0,108360.0,0.42254362]
[1756531064693,1.24272512,108370.0,108360.0,0.77795424]
[1756531064990,1.24272512,108370.0,108360.0,0.42254362]
[1756531066391,1.24272512,108370.0,108360.0,0.067133]
[1756531066588,1.24272512,108370.0,108360.0,0.42254362]
[1756531067190,0.8873145,108370.0,108360.0,0.42254362]
[1756531067388,1.22004062,108370.0,108360.0,0.42254362]
[1756531067593,1.24275428,108370.0,108360.0,0.42254362]
[1756531067791,0.88718366,108370.0,108360.0,0.78334362]
[1756531068091,1.24259428,108370.0,108360.0,0.78334362]
[1756531068792,0.88718366,108370.0,108360.0,0.78334362]
[1756531068992,1.24319428,108370.0,108360.0,1.13875424]
[1756531069189,0.88778366,108370.0,108360.0,0.427933]
[1756531069393,0.03654366,108370.0,108360.0,1.13875424]
[1756531069594,1.24327428,108370.0,108360.0,1.13875424]
[1756531070693,0.88786366,108370.0,108360.0,1.13875424]
[1756531070993,1.24327428,108370.0,108360.0,1.13875424]
[1756531071193,1.24327428,108370.0,108360.0,0.427933]
[1756531071395,1.24327428,108370.0,108360.0,1.13875424]
[1756531072196,0.88786366,108370.0,108360.0,1.13875424]
[1756531072496,1.24327428,108370.0,108360.0,1.13875424]
[1756531073002,0.02271366,108370.0,108360.0,1.38875424]
[1756531073189,0.02271366,108370.0,108360.0,1.74416486]
[1756531073390,0.02271366,108370.0,108360.0,1.38875424]
[1756531076795,0.02271366,108370.0,108360.0,1.3900207]
[1756531078500,1.15133284,108390.0,108380.0,0.01792]
[1756531078700,0.79592222,108390.0,108380.0,0.40244062]
[1756531078895,0.79592222,108390.0,108380.0,0.42218008]
[1756531079101,1.15133284,108390.0,108380.0,0.42218008]
[1756531079601,1.15333284,108390.0,108380.0,0.42218008]
[1756531080504,1.25333284,108390.0,108380.0,0.42218008]
[1756531080797,0.10349,108390.0,108380.0,0.79644889]
[1756531080997,0.00292,108390.0,108380.0,1.15724889]
[1756531081197,0.00549,108390.0,108380.0,1.15724889]
[1756531081705,0.00449,108390.0,108380.0,1.15724889]
[1756531082100,0.00349,108390.0,108380.0,1.15724889]
[1756531082601,0.00349,108390.0,108380.0,0.44642765]
[1756531082802,0.00349,108390.0,108380.0,1.15724889]
[1756531083007,0.00249,108390.0,108380.0,1.15724889]
[1756531083198,0.00349,108390.0,108380.0,1.15724889]
[1756531085198,0.00349,108390.0,108380.0,0.44642765]
[1756531085394,0.00349,108390.0,108380.0,1.15724889]
[1756531086806,0.35833062,108390.0,108380.0,1.15724889]
[1756531087507,0.002,108390.0,108380.0,1.15724889]
[1756531090406,0.02456845,108390.0,108380.0,1.15724889]
[1756531091508,0.02456845,108390.0,108380.0,2.00948889]
[1756531097815,0.02456845,108390.0,108380.0,1.64868889]
[1756531098015,0.02456845,108390.0,108380.0,2.00948889]
[1756531107316,0.11246957,108400.0,108380.0,2.36489951]
[1756531107519,0.02255241,108400.0,108390.0,1.12058124]
[1756531107916,0.02255241,108400.0,108390.0,1.1403207]
[1756531108518,0.06981715,108400.0,108390.0,1.1403207]
[1756531109225,0.14247408,108400.0,108390.0,1.1403207]
[1756531109519,0.06981715,108400.0,108390.0,1.1403207]
[1756531110520,0.06981715,108400.0,108390.0,1.1413207]
[1756531112324,0.04726474,108400.0,108390.0,1.1413207]
[1756531112526,0.37997062,108420.0,108390.0,1.1413207]
[1756531112822,0.37997062,108420.0,108410.0,0.76266062]
[1756531112823,0.49809062,108420.0,108410.0,0.76266062]
[1756531113028,0.49809062,108420.0,108410.0,0.78240008]
[1756531113324,0.14268,108420.0,108410.0,0.78240008]
[1756531113519,0.57316875,108420.0,108410.0,0.78240008]
[1756531114123,0.21775813,108420.0,108410.0,0.42698946]
[1756531114324,0.57316875,108420.0,108410.0,0.78240008]
[1756531114718,0.57416875,108420.0,108410.0,0.78240008]
[1756531115523,0.57616875,108420.0,108410.0,0.78240008]
[1756531115725,0.61532583,108420.0,108410.0,0.78240008]
[1756531116025,0.25991521,108420.0,108410.0,0.78240008]
[1756531116225,0.61532583,108420.0,108410.0,0.78240008]
[1756531116422,0.61532583,108420.0,108410.0,0.42698946]
[1756531116629,0.61532583,108420.0,108410.0,0.78240008]
[1756531117729,0.61532583,108420.0,108410.0,0.42698946]
[1756531117928,0.61532583,108420.0,108410.0,0.78240008]
[1756531118231,0.61532583,108420.0,108410.0,0.42698946]
[1756531118427,0.61532583,108420.0,108410.0,0.78240008]
[1756531119332,0.63775665,108420.0,108410.0,0.78240008]
[1756531121531,0.28234603,108420.0,108410.0,0.78240008]
[1756531121832,0.63775665,108420.0,108410.0,0.78240008]
[1756531122833,0.28234603,108420.0,108410.0,0.78240008]
[1756531123132,0.63775665,108420.0,108410.0,0.78240008]
[1756531123522,0.38234603,108420.0,108410.0,0.42160008]
[1756531123726,1.09316727,108420.0,108410.0,0.42160008]
[1756531124031,0.73775665,108420.0,108410.0,0.42160008]
[1756531124229,0.38234603,108420.0,108410.0,0.42160008]
[1756531124435,1.09316727,108420.0,108410.0,0.42160008]
[1756531124934,0.38234603,108420.0,108410.0,0.06618946]
[1756531125232,0.38234603,108420.0,108410.0,0.42160008]
[1756531125434,0.73775665,108420.0,108410.0,0.42160008]
[1756531125621,0.38234603,108420.0,108410.0,0.42160008]
[1756531125827,1.58927665,108420.0,108410.0,0.42160008]
[1756531126231,0.73775665,108420.0,108410.0,0.42160008]
[1756531126433,1.58919665,108420.0,108410.0,0.42160008]
[1756531127130,1.58919665,108420.0,108410.0,0.06618946]
[1756531127533,1.58919665,108420.0,108410.0,0.78240008]
[1756531127834,1.23378603,108420.0,108410.0,0.78240008]
[1756531128031,1.58919665,108420.0,108410.0,0.78240008]
[1756531129339,1.23378603,108420.0,108410.0,0.78240008]
[1756531129538,0.38234603,108420.0,108410.0,0.80080727]
[1756531129741,1.14122603,108420.0,108410.0,0.44539665]
[1756531129936,1.39663665,108420.0,108410.0,0.80080727]
[1756531130337,1.04122603,108420.0,108410.0,0.80080727]
[1756531130636,1.39563665,108420.0,108410.0,0.80080727]
[1756531131142,1.39463665,108420.0,108410.0,0.80080727]
[1756531131342,1.39363665,108420.0,108410.0,0.80080727]
[1756531131543,1.39463665,108420.0,108410.0,0.80080727]
[1756531131843,1.39463665,108420.0,108410.0,0.44539665]
[1756531132038,1.85543665,108420.0,108410.0,0.06618946]
[1756531132343,0.01812,108400.0,108390.0,0.37328382]
[1756531132538,1.35655062,108400.0,108390.0,0.40186062]
[1756531132733,1.37898144,108400.0,108390.0,0.40186062]
[1756531133738,1.37898144,108400.0,108390.0,0.04645]
[1756531133940,1.37898144,108400.0,108390.0,0.05045]
[1756531134146,1.37898144,108400.0,108390.0,0.40586062]
[1756531134840,1.37898144,108400.0,108390.0,0.40286062]
[1756531137545,2.44519206,108400.0,108390.0,0.001]
[1756531137744,0.0267,108390.0,108380.0,0.37442062]
[1756531138047,0.98346144,108390.0,108380.0,0.37442062]
[1756531139148,0.98346144,108390.0,108380.0,0.01901]
[1756531139449,0.98346144,108390.0,108380.0,0.37442062]
[1756531140244,0.63005082,108390.0,108380.0,0.01901]
[1756531140444,0.98546144,108390.0,108380.0,0.01901]
[1756531141049,0.98546144,108390.0,108380.0,0.37442062]
[1756531142050,0.98546144,108390.0,108380.0,0.01901]
[1756531142348,0.98546144,108390.0,108380.0,0.37442062]
[1756531142542,0.98546144,108390.0,108380.0,0.01901]
[1756531142745,0.98546144,108390.0,108380.0,0.37442062]
[1756531143151,1.84362144,108390.0,108380.0,0.37442062]
[1756531143540,1.84362144,108390.0,108380.0,0.40196062]
[1756531143849,1.84362144,108390.0,108380.0,0.37442062]
[1756531144050,1.84362144,108390.0,108380.0,0.01901]
[1756531144248,1.48821082,108390.0,108380.0,0.01901]
[1756531144443,1.84362144,108390.0,108380.0,0.04655]
[1756531144646,1.84362144,108390.0,108380.0,0.40196062]
[1756531145144,0.98546144,108390.0,108380.0,0.40196062]
[1756531145443,1.65304046,108390.0,108380.0,0.40196062]
[1756531145638,1.66741046,108390.0,108380.0,0.40196062]
[1756531145949,1.81301144,108390.0,108380.0,0.40196062]
[1756531146148,1.81301144,108390.0,108380.0,0.04655]
[1756531146347,1.81301144,108390.0,108380.0,0.40196062]
[1756531146749,1.81301144,108390.0,108380.0,0.04655]
[1756531147051,1.81301144,108390.0,108380.0,0.40196062]
[1756531147553,0.96399144,108390.0,108380.0,0.40196062]
[1756531147754,1.82175144,108390.0,108380.0,0.40196062]
[1756531149855,0.96399144,108390.0,108380.0,0.40196062]
[1756531150049,1.82167144,108390.0,108380.0,0.04655]
[1756531150556,1.82167144,108390.0,108380.0,0.40196062]
[1756531151354,0.96399144,108390.0,108380.0,0.40196062]
[1756531151551,1.82186848,108390.0,108380.0,0.40196062]
[1756531153355,1.46609786,108390.0,108380.0,0.40196062]
[1756531153556,0.96422848,108390.0,108380.0,0.40196062]
[1756531153757,1.82154848,108390.0,108380.0,0.40196062]